lending/lending_fUSD_20251111
["ID","MTS","AMOUNT","RATE_DAILY","PERIOD"]
[393650994,1762878687177,-1000.0,0.00055556,120]
[393650995,1762878687209,-1000.0,0.00055556,120]
[393650996,1762878687243,-1000.0,0.00055556,120]
[393650997,1762878687277,-153.0,0.000557,120]
[393650998,1762878687311,-500.0,0.0005588,120]
[393650999,1762878687346,-500.0,0.0005588,120]
[393651000,1762878687380,-888.11,0.000559,120]
[393651001,1762878687415,-678.15998133,0.00056,120]
[393651002,1762878687448,-320285.28061801,0.00056,120]
[393651003,1762878687480,-220.5134589,0.00056,120]
[393651004,1762878687512,-20094.01153004,0.00056,120]
[393651005,1762878687549,-200.0,0.00056,120]
[393651006,1762878687583,-2772.17696784,0.00056,120]
[393651007,1762878687615,-166.76662791,0.00056,120]
[393651008,1762878687654,-1328.91810947,0.00056,120]
[393651009,1762878687688,-2581.28350772,0.00056,120]
[393651010,1762878687721,-4237.255,0.00056164,120]
[393651011,1762878687756,-200.0,0.00056308,120]
[393651012,1762878687791,-150.0,0.00056387,120]
[393651013,1762878687828,-155.0,0.000564,120]
[393651014,1762878687860,-192.35,0.00056421,120]
[393651015,1762878687898,-153.0,0.000565,120]
[393651016,1762878687934,-234.91258694,0.0005652,120]
[393651017,1762878687966,-342.77,0.00056524,120]
[393651018,1762878687999,-500.0,0.00056524,120]
[393651019,1762878688031,-500.0,0.00056524,120]
[393651020,1762878688063,-500.0,0.00056524,120]
[393651021,1762878688095,-566.07,0.00056524,120]
[393651022,1762878688134,-500.0,0.00056524,120]
[393651023,1762878688167,-287.79,0.00056524,120]
[393651024,1762878688207,-500.0,0.00056524,120]
[393651025,1762878688241,-500.0,0.00056524,120]
[393651026,1762878688273,-500.0,0.00056524,120]
[393651027,1762878688304,-500.0,0.00056524,120]
[393651028,1762878688338,-500.0,0.00056524,120]
[393651029,1762878688372,-500.0,0.00056524,120]
[393651030,1762878688409,-500.0,0.00056524,120]
[393651031,1762878688443,-500.0,0.00056524,120]
[393651032,1762878688476,-500.0,0.00056524,120]
[393651033,1762878688508,-500.0,0.00056524,120]
[393651034,1762878688540,-500.0,0.00056524,120]
[393651035,1762878688571,-500.0,0.00056524,120]
[393651036,1762878688601,-500.0,0.00056524,120]
[393651037,1762878688633,-512.69,0.00056524,120]
[393651038,1762878688665,-500.0,0.00056524,120]
[393651039,1762878688696,-500.0,0.00056524,120]
[393651040,1762878688725,-500.0,0.00056524,120]
[393651041,1762878688762,-219.57,0.00056524,120]
[393651042,1762878688794,-500.0,0.00056529,61]
[393651043,1762878688828,-250.0,0.00056529,61]
[393651044,1762878688857,-537.6845,0.00056529,61]
[393651045,1762878688887,-151.0,0.00056529,61]
[393651046,1762878688921,-250.0,0.00056529,61]
[393651047,1762878688967,-151.0,0.00056529,61]
[393651048,1762878689005,-500.0,0.00056529,61]
[393651049,1762878689037,-250.0,0.00056529,61]
[393651050,1762878689069,-250.0,0.00056529,61]
[393651051,1762878689103,-500.0,0.00056529,61]
[393651052,1762878689135,-221.17711777,0.00056529,61]
[393651053,1762878689337,-162.380719,0.00056529,61]
[393651054,1762878689371,-151.0,0.00056529,61]
[393651055,1762878689406,-162.380719,0.00056529,61]
[393651056,1762878689438,-250.0,0.00056529,61]
[393651057,1762878689471,-250.0,0.00056529,61]
[393651058,1762878689502,-151.0,0.00056529,61]
[393651059,1762878689537,-600.0,0.00056529,61]
[393651060,1762878689570,-445.202766,0.00056529,61]
[393651061,1762878689601,-151.0,0.00056529,61]
[393651062,1762878689633,-159.1968052,0.00056944,120]
[393651063,1762878689663,-209.99996003,0.00056957,120]
[393651064,1762878689693,-2435.13231478,0.00056964,120]
[393651065,1762878689727,-500.0,0.00056976,120]
[393651066,1762878689759,-500.0,0.00056976,120]
[393651067,1762878689792,-513.77722903,0.00056981,120]
[393651068,1762878689824,-298.04805004,0.00056986,30]
[393651069,1762878689856,-556.62759727,0.00056992,120]
[393651070,1762878689886,-1000.0,0.00056999,120]
[393651071,1762878689916,-2031.0,0.00057,60]
[393651072,1762878689946,-2031.0,0.00057,60]
[393651073,1762878689976,-2031.0,0.00057,60]
[393651074,1762878690005,-2031.0,0.00057,60]
[393651075,1762878690036,-2031.0,0.00057,60]
[393651076,1762878690064,-2031.0,0.00057,60]
[393651077,1762878690093,-2031.0,0.00057,60]
[393651078,1762878690123,-2031.0,0.00057,60]
[393651079,1762878690156,-2031.0,0.00057,60]
[393651080,1762878690189,-2031.0,0.00057,60]
[393651081,1762878690221,-1064.0,0.00057,120]
[393651082,1762878690255,-2000.0,0.00057,120]
[393651083,1762878690287,-150.0,0.00057086,120]
[393651084,1762878690318,-442.77650599,0.000571,30]
[393651085,1762878690351,-4622.46,0.00057123,120]
[393651086,1762878690384,-153.0,0.000572,120]
[393651087,1762878690416,-155.0,0.000574,120]
[393651088,1762878690449,-2143.0,0.00057458,120]
[393651089,1762878690481,-200.0,0.0005747,30]
[393651090,1762878690513,-250.0,0.0005747,30]
[393651091,1762878690548,-500.0,0.00057499,120]
[393651092,1762878690580,-250.0,0.00057499,120]
[393651093,1762878690613,-518.5,0.00057499,120]
[393651094,1762878690646,-151.0,0.00057499,120]
[393651095,1762878690678,-250.0,0.00057499,120]
[393651096,1762878690709,-151.0,0.00057499,120]
[393651097,1762878690742,-500.0,0.00057499,120]
[393651098,1762878690772,-250.0,0.00057499,120]
[393651099,1762878690809,-250.0,0.00057499,120]
[393651100,1762878690839,-152.50844048,0.00057499,120]
[393651101,1762878690871,-500.0,0.00057499,120]
[393651102,1762878690902,-220.0,0.00057499,120]
[393651103,1762878690935,-156.587,0.00057499,120]
[393651104,1762878690964,-151.0,0.00057499,120]
[393651105,1762878690994,-156.587,0.00057499,120]
[393651106,1762878691024,-311.1,0.00057499,120]
[393651107,1762878691057,-250.0,0.00057499,120]
[393651108,1762878691091,-250.0,0.00057499,120]
[393651109,1762878691122,-151.0,0.00057499,120]
[393651110,1762878691153,-600.0,0.00057499,120]
[393651111,1762878691183,-429.318,0.00057499,120]
[393651112,1762878691213,-151.0,0.00057499,120]
[393651113,1762878691243,-418.08,0.000575,120]
[393651114,1762878691275,-1138.84316685,0.000575,120]
[393651115,1762878691308,-156.9,0.000575,120]
[393651116,1762878691340,-395.79303035,0.000575,30]
[393651117,1762878691371,-757.0,0.000575,30]
[393651118,1762878691405,-200.0,0.00057523,120]
[393651119,1762878691437,-250.0,0.00057523,30]
[393651120,1762878691471,-500.0,0.00057523,30]
[393651121,1762878691503,-500.0,0.00057523,30]
[393651122,1762878691535,-151.0,0.00057523,30]
[393651123,1762878691566,-250.0,0.00057523,30]
[393651124,1762878691598,-151.0,0.00057523,30]
[393651125,1762878691634,-500.0,0.00057523,30]
[393651126,1762878691666,-250.0,0.00057523,30]
[393651127,1762878691697,-250.0,0.00057523,30]
[393651128,1762878691731,-500.0,0.00057523,30]
[393651129,1762878691765,-151.0,0.00057523,30]
[393651130,1762878691794,-220.0,0.00057523,30]
[393651131,1762878691824,-151.0,0.00057523,30]
[393651132,1762878691853,-151.0,0.00057523,30]
[393651133,1762878691884,-151.0,0.00057523,30]
[393651134,1762878691914,-300.0,0.00057523,30]
[393651135,1762878691945,-572.40430679,0.00057523,30]
[393651136,1762878691979,-250.0,0.00057523,30]
[393651137,1762878692013,-250.0,0.00057523,30]
[393651138,1762878692045,-524.81126104,0.00057523,30]
[393651139,1762878692078,-151.0,0.00057523,30]
[393651140,1762878692107,-600.0,0.00057523,30]
[393651141,1762878692139,-414.0,0.00057523,30]
[393651142,1762878692173,-151.0,0.00057523,30]
[393651143,1762878692206,-200.0,0.00057523,30]
[393651144,1762878692237,-500.0,0.00057524,30]
[393651145,1762878692268,-500.0,0.00057524,30]
[393651146,1762878692298,-500.0,0.00057524,30]
[393651147,1762878692449,-500.0,0.00057524,30]
[393651148,1762878692482,-500.0,0.00057524,30]
[393651149,1762878692513,-500.0,0.00057524,30]
[393651150,1762878692547,-500.0,0.00057524,30]
[393651151,1762878692580,-581.0590344,0.00057524,30]
[393651152,1762878692613,-1000.0,0.00057534,120]
[393651153,1762878692647,-1000.0,0.00057534,120]
[393651154,1762878692680,-2000.0,0.000577,90]
[393651155,1762878692713,-153.0,0.000579,120]
[393651156,1762878692748,-1000.0,0.00057999,120]
[393651157,1762878692781,-500.0,0.00058,120]
[393651158,1762878692813,-200.0,0.00058,120]
[393651159,1762878692843,-150.0,0.00058,120]
[393651160,1762878692874,-3000.0,0.00058,120]
[393651161,1762878692904,-150.0,0.00058,120]
[393651162,1762878692934,-285.40465581,0.00058072,120]
[393651163,1762878692964,-153.43433581,0.00058072,120]
[393651164,1762878692994,-5007.665,0.00058082,120]
[393651165,1762878693025,-900.34,0.00058135,120]
[393651166,1762878693056,-987.19,0.00058253,120]
[393651167,1762878693088,-266.48,0.000583,120]
[393651168,1762878693120,-5000.0,0.000584,120]
[393651169,1762878693155,-155.0,0.000584,120]
[393651170,1762878693188,-200.0,0.00058523,120]
[393651171,1762878693220,-2000.0,0.0005865,68]
[393651172,1762878693254,-153.0,0.000587,120]
[393651173,1762878693286,-2791.8,0.00058738,120]
[393651174,1762878693320,-1000.0,0.000588,120]
[393651175,1762878693353,-1000.0,0.000588,120]
[393651176,1762878693388,-1000.0,0.000588,120]
[393651177,1762878693422,-1000.0,0.000588,120]
[393651178,1762878693455,-1000.0,0.000588,120]
[393651179,1762878693488,-1000.0,0.000588,120]
[393651180,1762878693520,-187.7,0.000588,120]
[393651181,1762878693553,-200.0,0.000589,120]
[393651182,1762878693584,-1974.0,0.00059,110]
[393651183,1762878693617,-188.81236354,0.00059,120]
[393651184,1762878693656,-600.0,0.00059,30]
[393651185,1762878693688,-2000.0,0.00059,120]
[393651186,1762878693718,-150.0,0.00059,120]
[393651187,1762878693752,-3000.0,0.00059,120]
[393651188,1762878693782,-3000.0,0.00059,120]
[393651189,1762878693814,-3889.0,0.00059,120]
[393651190,1762878693843,-57000.0,0.00059,120]
[393651191,1762878693873,-1926.22991374,0.00059041,120]
[393651192,1762878693907,-153.0,0.000594,120]
[393651193,1762878693939,-155.0,0.000595,120]
[393651194,1762878693969,-263.605404,0.00059523,120]
[393651195,1762878694001,-2000.0,0.0005963,62]
[393651196,1762878694034,-645.0,0.0005987,120]
[393651197,1762878694066,-445.0,0.00059886,120]
[393651198,1762878694097,-30000.0,0.00059899,120]
[393651199,1762878694128,-1237.03236949,0.000599,120]
[393651200,1762878694159,-1000.0,0.00059999,120]
[393651201,1762878694189,-1167.08264741,0.0006,30]
[393651202,1762878694219,-486.83366899,0.0006,120]
[393651203,1762878694249,-172.67982497,0.0006,120]
[393651204,1762878694282,-1000.0,0.0006,120]
[393651205,1762878694315,-500.0,0.0006,120]
[393651206,1762878694347,-400.0,0.0006,120]
[393651207,1762878694383,-150.0,0.0006,60]
[393651208,1762878694416,-150.0,0.0006,120]
[393651209,1762878694450,-1000.0,0.0006,120]
[393651210,1762878694483,-150.0,0.0006,120]
[393651211,1762878694518,-150.0,0.0006,120]
[393651212,1762878694551,-150.0,0.0006,120]
[393651213,1762878694583,-150.0,0.0006,120]
[393651214,1762878694615,-3000.0,0.0006,120]
[393651215,1762878694650,-60677.55962,0.0006,120]
[393651216,1762878694682,-8000.0,0.0006,30]
[393651217,1762878694713,-150.0,0.0006,120]
[393651218,1762878694746,-150.0,0.0006,120]
[393651219,1762878694778,-150.0,0.0006,120]
[393651220,1762878694809,-150.0,0.0006,120]
[393651221,1762878694839,-500000.0,0.0006,120]
[393651222,1762878694868,-101295.34953139,0.0006,120]
[393651223,1762878694902,-4526.80300723,0.0006,120]
[393651224,1762878694933,-500.0,0.0006,120]
[393651225,1762878694966,-9648.82,0.0006,120]
[393651226,1762878694999,-154.05,0.0006,120]
[393651227,1762878695031,-153.0,0.000601,120]
[393651228,1762878695170,151.0,0.00049314,120]
[393651229,1762878695219,151.0,0.00049314,120]
[393651230,1762878695258,150.0,0.00059974,120]
[393651231,1762878695301,151.0,0.00049314,120]
[393651232,1762878695344,150.0,0.00059974,120]
[393651233,1762878695396,151.0,0.00049314,120]
[393651234,1762878695440,151.0,0.00049314,120]
[393651235,1762878695614,151.0,0.00049314,120]
[393651236,1762878695658,500.0,0.00037989,15]
[393651237,1762878695697,500.0,0.00037989,15]
[393651238,1762878695745,392.24589828,0.00037989,15]
[393651239,1762878695782,500.0,0.00037989,15]
[393651240,1762878695825,151.0,0.00049314,120]
[393651241,1762878695874,151.0,0.00049314,120]
[393651242,1762878698373,-300.908,0.00037452,48]
[393651243,1762878698413,-2020.151,0.00037452,48]
[393651244,1762878698451,-500.0,0.00037989,15]
[393651245,1762878698489,-331.5844456,0.00040137,31]
[393651246,1762878698525,-161.11840687,0.00040138,29]
[393651247,1762878698579,-1000000.0,0.00045,120]
[393651248,1762878698616,-1000000.0,0.00045,120]
[393651249,1762878698653,-300000.0,0.00045,120]
[393651250,1762878698691,-151.0,0.00049314,120]
[393651251,1762878698727,-151.0,0.00049314,120]
[393651252,1762878698760,-151.0,0.00049314,120]
[393651253,1762878698794,-151.0,0.00049314,120]
[393651254,1762878698828,-151.0,0.00049314,120]
[393651255,1762878698866,-2020.152,0.00055589,106]
[393651256,1762878698900,-300.908,0.00055589,106]
[393651257,1762878698933,-500.0,0.00056524,120]
[393651258,1762878698965,-500.0,0.00056524,120]
[393651259,1762878699000,-500.0,0.00056524,120]
[393651260,1762878699031,-500.0,0.00056524,120]
[393651261,1762878699062,-500.0,0.00056524,120]
[393651262,1762878699093,-500.0,0.00056524,120]
[393651263,1762878699123,-500.0,0.00056524,120]
[393651264,1762878699155,-500.0,0.00056524,120]
[393651265,1762878699187,-500.0,0.00056524,120]
[393651266,1762878699219,-500.0,0.00056524,120]
[393651267,1762878699252,-500.0,0.00056524,120]
[393651268,1762878699284,-500.0,0.00056524,120]
[393651269,1762878699317,-500.0,0.00056524,120]
[393651270,1762878699349,-500.0,0.00056524,120]
[393651271,1762878699382,-500.0,0.00056524,120]
[393651272,1762878699413,-500.0,0.00056524,120]
[393651273,1762878699447,-500.0,0.00056524,120]
[393651274,1762878699479,-500.0,0.00056524,120]
[393651275,1762878699512,-500.0,0.00056524,120]
[393651276,1762878699545,-500.0,0.00056524,120]
[393651277,1762878699578,-824.019561,0.0005775,120]
[393651278,1762878699611,-150.0,0.00059974,120]
[393651279,1762878699642,-150.0,0.00059974,120]
[393651280,1762878699674,-150.0,0.00059974,22]
[393651281,1762878699705,-150.0,0.00059974,120]
[393651282,1762878699736,-500.0,0.00059974,120]
[393651283,1762878699768,-500.0,0.00059974,120]
[393651284,1762878699798,-600.0,0.00060274,41]
[393651285,1762878699831,-2143.0,0.00060458,120]
[393651286,1762878699861,-155.0,0.000605,120]
[393651287,1762878699893,-280.0,0.000608,120]
[393651288,1762878699925,-30000.0,0.00060899,120]
[393651289,1762878699956,-153.0,0.000609,120]
[393651290,1762878699987,-2000.0,0.00061,120]
[393651291,1762878700020,-150.0,0.00061,120]
[393651292,1762878700050,-150.0,0.00061,120]
[393651293,1762878700080,-62278.30364343,0.00061,120]
[393651294,1762878700113,-3889.0,0.00061,120]
[393651295,1762878700145,-769.66,0.00061,60]
[393651296,1762878700177,-265.85,0.000613,120]
[393651297,1762878700207,-150.0,0.00061344,120]
[393651298,1762878700239,-1846.0,0.000614,90]
[393651299,1762878700270,-155.0,0.000615,120]
[393651300,1762878700303,-153.0,0.000616,120]
[393651301,1762878700336,-30000.0,0.00061899,120]
[393651302,1762878700371,-500.0,0.00062,120]
[393651303,1762878700408,-1000.0,0.00062,120]
[393651304,1762878700443,-200.0,0.00062,120]
[393651305,1762878700480,-150.0,0.00062,120]
[393651306,1762878700513,-150.0,0.00062,120]
[393651307,1762878700545,-153.0,0.000623,120]
[393651308,1762878700578,-155.0,0.000626,120]
[393651309,1762878700608,-150.0,0.00062714,120]
[393651310,1762878700639,-1000.0,0.00062999,120]
[393651311,1762878700670,-2000.0,0.00063,120]
[393651312,1762878700702,-150.0,0.00063,120]
[393651313,1762878700736,-213.42,0.00063,120]
[393651314,1762878700767,-470.29733478,0.00063,120]
[393651315,1762878700798,-150.0,0.00063,120]
[393651316,1762878700831,-3889.0,0.00063,120]
[393651317,1762878700860,-30000.0,0.00063,120]
[393651318,1762878700889,-757.30473585,0.00063,30]
[393651319,1762878701045,-153.0,0.000631,120]
[393651320,1762878701078,-900.34,0.00063182,120]
[393651321,1762878701109,-2143.0,0.00063458,120]
[393651322,1762878701142,-205810.55380304,0.000635,120]
[393651323,1762878701174,-155.0,0.000636,120]
[393651324,1762878701211,-153.0,0.000638,120]
[393651325,1762878701245,-60000.0,0.000638,30]
[393651326,1762878701281,-30000.0,0.00063899,120]
[393651327,1762878701314,-1000.0,0.00063999,120]
[393651328,1762878701347,-200.0,0.00064,120]
[393651329,1762878701384,-150.0,0.00064,120]
[393651330,1762878701422,-150.0,0.00064,120]
[393651331,1762878701457,-4000.0,0.00064,120]
[393651332,1762878701491,-200.0,0.00064084,120]
[393651333,1762878701533,-2000.0,0.0006432,65]
[393651334,1762878701570,-304010.8528,0.00064444,30]
[393651335,1762878701607,-34834.3273,0.00064444,30]
[393651336,1762878701641,-153.0,0.000645,120]
[393651337,1762878701674,-155.0,0.000646,120]
[393651338,1762878701706,-598.96,0.0006487,120]
[393651339,1762878701743,-30000.0,0.00064899,120]
[393651340,1762878701776,-500.0,0.00065,120]
[393651341,1762878701816,-2000.0,0.00065,120]
[393651342,1762878701848,-1068.23550849,0.00065,120]
[393651343,1762878701883,-180.0,0.00065,120]
[393651344,1762878701915,-150.0,0.00065,60]
[393651345,1762878701946,-361.77066424,0.00065,120]
[393651346,1762878701977,-150.0,0.00065,120]
[393651347,1762878702010,-150.0,0.00065,120]
[393651348,1762878702042,-150.0,0.00065,120]
[393651349,1762878702073,-150.38,0.00065,120]
[393651350,1762878702103,-1327.30556396,0.00065,120]
[393651351,1762878702135,-9648.82,0.00065,120]
[393651352,1762878702166,-154.05,0.00065,120]
[393651353,1762878702199,-1846.15036874,0.000651,120]
[393651354,1762878702233,-153.0,0.000653,120]
[393651355,1762878702269,-5000.0,0.000654,120]
[393651356,1762878702301,-155.0,0.000657,120]
[393651357,1762878702339,-600.0,0.00065753,120]
[393651358,1762878702378,500.0,0.00059974,120]
[393651359,1762878702419,500.0,0.00059974,120]
[393651360,1762878702456,500.0,0.00059974,120]
[393651361,1762878702493,500.0,0.00056524,120]
[393651362,1762878702532,500.0,0.00059974,120]
[393651363,1762878702570,500.0,0.00059974,120]
[393651364,1762878702612,500.0,0.00056524,120]
[393651365,1762878702651,500.0,0.00059974,120]
[393651366,1762878702687,500.0,0.00059974,120]
[393651367,1762878702724,500.0,0.00059974,120]
[393651368,1762878702763,428.36611142,0.00059974,120]
[393651369,1762878702796,500.0,0.00056524,120]
[393651370,1762878702836,176.81652019,0.00040137,31]
[393651371,1762878702872,500.0,0.00056524,120]
[393651372,1762878702918,327.18682053,0.00040038,15]
[393651373,1762878702958,500.0,0.00056524,120]
[393651374,1762878702995,500.0,0.00059974,120]
[393651375,1762878703034,500.0,0.00059974,120]
[393651376,1762878703071,58955.07768775,0.00040038,15]
[393651377,1762878703109,500.0,0.00059974,120]
[393651378,1762878703148,500.0,0.00056524,120]
[393651379,1762878703188,500.0,0.00037989,15]
[393651380,1762878703226,500.0,0.00059974,120]
[393651381,1762878703265,543.13096583,0.00037989,15]
[393651382,1762878703345,500.0,0.00059974,120]
[393651383,1762878703391,500.0,0.00059974,120]
[393651384,1762878703447,500.0,0.00056524,120]
[393651385,1762878703488,500.0,0.00059974,120]
[393651386,1762878703682,500.0,0.00059974,120]
[393651387,1762878703891,500.0,0.00059974,120]
[393651388,1762878704085,500.0,0.00059974,120]
[393651389,1762878704248,500.0,0.00056524,120]
[393651390,1762878704287,500.0,0.00059974,120]
[393651391,1762878704585,500.0,0.00059974,120]
[393651392,1762878704625,811.0,0.00047,10]
[393651393,1762878704794,151.0,0.00049314,120]
[393651394,1762878704831,500.0,0.00059974,120]
[393651395,1762878705008,500.0,0.00059974,120]
[393651396,1762878705051,500.0,0.00056524,120]
[393651397,1762878705089,405.0,0.0005,30]
[393651398,1762878705261,606.37285367,0.00059974,120]
[393651399,1762878705440,407.0,0.00053,30]
[393651400,1762878705481,151.0,0.00049314,120]
[393651401,1762878705790,500.0,0.00056524,120]
[393651402,1762878706058,151.0,0.00049314,120]
[393651403,1762878706570,462.04,0.00056524,120]
[393651404,1762878706839,151.0,0.00049314,120]
[393651424,1762879186448,203.0,0.000301,120]
[393651522,1762879615436,250.0,0.00017,2]
[393651575,1762879747104,-171.99217337,0.00021718,2]
[393651576,1762879747129,-1200.0,0.00021817,2]
[393651577,1762879747152,-300.0,0.00021817,2]
[393651578,1762879747172,-1200.0,0.00021817,2]
[393651579,1762879747191,-670.34216281,0.00021818,2]
[393651580,1762879747210,-666.0,0.00021818,2]
[393651581,1762879747230,-666.0,0.00021818,2]
[393651582,1762879747249,-332.17702982,0.00021818,2]
[393651592,1762879831337,-171.99217336,0.00021799,2]
[393651593,1762879831347,-333.82297018,0.00021818,2]
[393651594,1762879831357,-124.49485646,0.00021818,2]
[393651595,1762879831369,-346.99382937,0.00021818,2]
[393651598,1762879831386,-194.51131417,0.00021818,2]
[393651600,1762879831395,-1100.0,0.00021899,2]
[393651602,1762879831404,-300.0,0.00021899,2]
[393651603,1762879831413,-1200.0,0.00021899,2]
[393651604,1762879831423,-500.0,0.000219,2]
[393651605,1762879831432,-500.0,0.000219,2]
[393651606,1762879831441,-500.0,0.000219,2]
[393651607,1762879831450,-500.0,0.000219,2]
[393651608,1762879831460,-500.0,0.000219,2]
[393651609,1762879831469,-500.0,0.000219,2]
[393651610,1762879831479,-500.0,0.000219,2]
[393651611,1762879831488,-500.0,0.000219,2]
[393651612,1762879831498,-500.0,0.000219,2]
[393651613,1762879831507,-478.44322026,0.00022401,2]
[393651614,1762879831520,-1000.0,0.00022448,2]
[393651615,1762879831530,-685.0,0.00022797,2]
[393651616,1762879831540,-720.39703715,0.00022996,2]
[393651617,1762879831550,-272.80097595,0.0002389,2]
[393651618,1762879831560,-477.74284024,0.00028,10]
[393651619,1762879831570,-140.68392764,0.00033867,30]
[393651620,1762879831583,-17.27607236,0.00033867,30]
[393651621,1762879831593,-206.20994028,0.00034534,120]
[393651622,1762879831602,-157.96,0.00035055,30]
[393651623,1762879831611,-527.3015518,0.00035535,30]
[393651624,1762879831623,-328.0184482,0.00035535,30]
[393651625,1762879831632,-574.9815518,0.00035539,2]
[393651626,1762879831643,-3175.8584482,0.00035539,2]
[393651627,1762879831653,-200.0,0.00035565,2]
[393651628,1762879831664,-169.732936,0.00035842,2]
[393651629,1762879831674,-157.96,0.00036243,30]
[393651630,1762879831684,-3160.01196904,0.00036311,2]
[393651631,1762879831699,-27965.23803096,0.00036311,2]
[393651632,1762879831709,-500.0,0.00036373,5]
[393651633,1762879831722,-500.0,0.00036373,5]
[393651634,1762879831732,-1000.0,0.00036464,2]
[393651635,1762879831742,-301.86194013,0.00036516,2]
[393651636,1762879831752,-200.0,0.00036665,2]
[393651637,1762879831762,-151.0,0.00036682,2]
[393651638,1762879831772,-151.0,0.00036682,2]
[393651639,1762879831781,-151.0,0.00036682,2]
[393651640,1762879831790,-151.0,0.00036682,2]
[393651641,1762879831800,-151.0,0.00036682,2]
[393651642,1762879831810,-151.0,0.00036682,2]
[393651643,1762879831819,-151.0,0.00036682,2]
[393651644,1762879831829,-151.0,0.00036682,2]
[393651645,1762879831841,-151.0,0.00036682,2]
[393651646,1762879831851,-151.0,0.00036682,2]
[393651647,1762879831860,-151.0,0.00036682,2]
[393651648,1762879831870,-151.0,0.00036682,2]
[393651649,1762879831880,-151.0,0.00036682,2]
[393651650,1762879831890,-151.0,0.00036682,2]
[393651651,1762879831900,-151.0,0.00036682,2]
[393651652,1762879831909,-151.0,0.00036682,2]
[393651653,1762879831919,-151.0,0.00036682,2]
[393651654,1762879831931,-151.0,0.00036682,2]
[393651655,1762879831940,-151.0,0.00036682,2]
[393651656,1762879831950,-151.0,0.00036682,2]
[393651657,1762879831959,-21617.44,0.00036704,2]
[393651658,1762879831969,-1000.0,0.00036731,2]
[393651659,1762879831978,-254.672,0.00036833,46]
[393651660,1762879831987,-150.454,0.00036833,46]
[393651661,1762879831997,-5000.0,0.00036874,2]
[393651662,1762879832007,-169.732936,0.0003693,2]
[393651663,1762879832017,-156.09748,0.0003693,2]
[393651664,1762879832027,-7787.63,0.00036937,2]
[393651665,1762879832037,-500.0,0.00037041,2]
[393651666,1762879832046,-500.0,0.00037173,5]
[393651667,1762879832056,-157.96,0.00037432,30]
[393651668,1762879832065,-500.0,0.00037563,15]
[393651669,1762879832075,-172.64040023,0.00037563,7]
[393651670,1762879832085,-500.0,0.00037563,7]
[393651671,1762879832095,-500.0,0.00037563,15]
[393651672,1762879832107,-500.0,0.00037563,15]
[393651673,1762879832117,-500.0,0.00037563,15]
[393651674,1762879832127,-500.0,0.00037563,2]